bitfinex-derivatives/quotes_ETHF0:USTF0_20251116
["timestamp","ask_amount","ask_price","bid_price","bid_amount"]
[1763318015089,4.00882664,3089.1,3088.3,0.52489]
[1763318016181,4.00882664,3089.1,3087.9,3.21012144]
[1763318016381,3.2078,3088.7,3087.9,3.21012144]
[1763318018083,3.2078,3088.7,3087.9,3.73508144]
[1763318018789,3.2078,3088.7,3087.9,3.21012144]
[1763318019287,0.76136095,3088.6,3087.9,3.21012144]
[1763318019484,1.2588,3088.0,3087.9,3.21012144]
[1763318019885,4.4666,3088.0,3087.9,0.00232144]
[1763318020083,1.2588,3087.2,3087.1,3.2078]
[1763318020287,5.22903407,3087.2,3086.6,3.2078]
[1763318020488,4.4666,3087.2,3086.6,3.2078]
[1763318021088,4.47145602,3087.2,3086.6,3.2166794]
[1763318022689,0.00485602,3087.2,3087.1,1.2179]
[1763318023083,3.2078,3087.8,3087.1,6.0]
[1763318023284,3.2078,3088.9,3087.9,0.52496]
[1763318023589,3.2078,3088.9,3088.3,0.5249]
[1763318023785,3.2078,3088.9,3088.4,0.52487]
[1763318023987,3.2078,3088.9,3088.6,0.52484]
[1763318024591,3.2078,3088.9,3088.4,0.52972602]
[1763318024794,3.2078,3088.9,3088.5,0.52486]
[1763318024994,3.2078,3088.9,3088.6,0.52484]
[1763318026292,3.2078,3088.9,3088.4,0.52972602]
[1763318026494,3.2078,3088.9,3088.4,0.00485602]
[1763318029182,1.2588,3088.5,3088.4,0.00485602]
[1763318029582,1.2462,3088.2,3088.1,3.2078]
[1763318030186,1.2462,3087.8,3087.3,3.73286]
[1763318030389,1.2462,3087.8,3087.5,0.52503]
[1763318030598,3.9693,3088.4,3087.3,3.21265602]
[1763318030599,0.00485602,3088.0,3087.3,3.21265602]
[1763318031492,0.00485602,3088.0,3087.3,3.73772602]
[1763318031996,0.00485602,3088.0,3087.3,3.21265602]
[1763318032396,0.00485602,3088.0,3087.4,0.52505]
[1763318033000,0.00485602,3088.0,3087.3,3.21265602]
[1763318033501,0.00485602,3088.0,3087.5,0.52503]
[1763318034092,0.00485602,3088.0,3087.3,3.21265602]
[1763318034298,0.00485602,3088.0,3087.3,3.73772602]
[1763318034497,0.00485602,3088.0,3087.4,0.52505]
[1763318034699,0.00485602,3088.0,3087.3,3.21265602]
[1763318035206,0.00485602,3088.0,3087.3,3.73771602]
[1763318036007,0.00485602,3088.0,3087.4,0.52505]
[1763318036200,0.00485602,3088.0,3087.5,0.52503]
[1763318036405,0.00485602,3088.0,3087.3,3.73770602]
[1763318036606,0.00485602,3088.0,3087.4,0.52505]
[1763318036904,0.00485602,3088.0,3087.3,3.21265602]
[1763318037105,0.00485602,3088.0,3087.3,3.73771602]
[1763318037305,0.00485602,3088.0,3087.3,3.21265602]
[1763318037604,0.00485602,3088.0,3087.3,3.73771602]
[1763318038007,1.2462,3087.4,3087.3,3.21265602]
[1763318038209,2.00957437,3087.4,3087.3,0.00485602]
[1763318038799,0.76337437,3087.4,3087.3,0.00485602]
[1763318038999,0.76337437,3087.5,3087.3,0.00485602]
[1763318039206,1.2462,3087.4,3087.3,0.00485602]
[1763318039407,2.00957437,3087.4,3087.3,0.00485602]
[1763318040501,0.76337437,3087.4,3087.3,1.29395602]
[1763318040705,0.76337437,3087.5,3087.3,1.29395602]
[1763318040911,1.2462,3087.4,3087.3,0.00485602]
[1763318041208,2.00957437,3087.4,3087.3,0.00485602]
[1763318044506,3.2078,3087.6,3087.5,1.2891]
[1763318045103,3.21265602,3088.0,3087.9,1.2891]
[1763318045406,3.97809864,3088.0,3087.6,0.525]
[1763318045608,3.97809864,3088.0,3087.3,3.21265602]
[1763318045609,3.21265602,3088.0,3087.5,0.52503]
[1763318045815,3.21265602,3088.0,3087.7,0.525]
[1763318047709,3.21265602,3088.0,3087.9,1.2891]
[1763318047908,3.97825492,3088.0,3087.7,0.52499]
[1763318048204,3.21265602,3088.0,3087.7,0.52499]
[1763318048916,3.21265602,3088.0,3087.8,0.52498]
[1763318050112,3.21265602,3088.0,3087.6,0.52501]
[1763318050518,3.21265602,3088.0,3087.3,3.21265602]
[1763318050716,0.00485602,3088.0,3087.9,1.81407]
[1763318051220,0.76563912,3088.7,3088.6,1.2891]
[1763318051424,3.2078,3089.2,3088.6,4.4969]
[1763318051616,0.76848213,3089.1,3088.6,4.4969]
[1763318052017,0.76848213,3089.1,3089.0,1.2891]
[1763318052215,0.00282664,3089.1,3089.0,1.29194881]
[1763318052819,0.7615,3090.0,3089.4,0.52471]
[1763318053015,3.2078,3090.1,3089.7,0.52465]
[1763318053215,3.2078,3090.1,3089.5,0.52468]
[1763318053417,1.52605338,3090.0,3089.4,3.21265602]
[1763318053617,0.7615,3090.0,3089.4,3.21265602]
[1763318053920,0.76483508,3090.0,3089.4,3.21265602]
[1763318055019,4.454,3089.5,3089.4,0.00485602]
[1763318055216,1.2462,3089.1,3089.0,4.881e-05]
[1763318055421,4.454,3089.1,3089.0,4.881e-05]
[1763318056323,0.00485602,3089.4,3089.0,1.13884881]
[1763318056522,0.00485602,3089.4,3089.0,4.881e-05]
[1763318056724,0.71625602,3089.4,3089.1,0.52475]
[1763318057022,0.71625602,3089.4,3089.0,4.881e-05]
[1763318057317,3.2078,3089.1,3089.0,4.881e-05]
[1763318057513,0.71625602,3089.4,3089.0,4.881e-05]
[1763318057716,0.76402143,3089.3,3089.0,4.881e-05]
[1763318057911,0.71625602,3089.4,3089.0,4.881e-05]
[1763318058111,0.00485602,3089.4,3089.0,4.881e-05]
[1763318058317,0.70255602,3089.4,3089.0,4.881e-05]
[1763318059916,0.70255602,3089.4,3089.0,0.52481881]
[1763318060222,0.00485602,3089.4,3089.1,0.52476]
[1763318060416,0.00485602,3089.4,3089.0,4.881e-05]
[1763318060611,0.70255602,3089.4,3089.0,4.881e-05]
[1763318060817,0.70255602,3089.4,3089.0,0.52481881]
[1763318061218,0.70255602,3089.4,3089.0,4.881e-05]
[1763318061717,0.00485602,3089.4,3089.1,0.52475]
[1763318062224,0.00485602,3089.4,3089.0,4.881e-05]
[1763318062425,0.70255602,3089.4,3089.0,4.881e-05]
[1763318062622,0.70255602,3089.4,3089.0,0.52481881]
[1763318063323,0.70255602,3089.4,3089.1,0.52476]
[1763318063524,0.00485602,3089.4,3089.2,0.52474]
[1763318063722,0.00485602,3089.4,3089.0,4.881e-05]
[1763318064024,0.70255602,3089.4,3089.0,4.881e-05]
[1763318064220,3.2078,3089.1,3089.0,4.881e-05]
[1763318064718,2.35967085,3089.3,3089.0,4.881e-05]
[1763318064921,0.70255602,3089.4,3089.0,4.881e-05]
[1763318065222,0.00485602,3089.4,3089.3,4.92903]
[1763318067320,0.86810199,3090.6,3090.4,0.52454]
[1763318067620,0.86810199,3090.6,3089.4,6.0]
[1763318067621,0.6977,3090.6,3090.5,3.73231]
[1763318067827,2.35967085,3091.6,3090.5,3.2078]
[1763318068118,1.2045,3090.7,3089.4,0.7175]
[1763318068322,1.9022,3090.0,3089.9,3.2078]
[1763318068525,3.9055,3090.6,3089.9,3.2078]
[1763318069325,1.2045,3089.8,3089.7,0.00485602]
[1763318069517,0.6977,3090.0,3089.7,0.00485602]
[1763318069719,1.2045,3089.8,3089.7,0.00485602]
[1763318070119,1.2045,3089.8,3089.1,3.2078]
[1763318070120,1.2045,3089.2,3089.1,3.2078]
[1763318070630,0.6977,3089.4,3089.0,4.881e-05]
[1763318071526,3.2078,3089.5,3089.0,0.52481881]
[1763318071722,3.2078,3089.5,3089.1,0.52476]
[1763318071923,3.2078,3089.9,3089.2,3.73253]
[1763318072425,3.2078,3089.9,3089.3,0.52472]
[1763318072623,3.2078,3089.9,3089.2,3.73253]
[1763318073026,3.2078,3089.9,3089.4,0.52471]
[1763318073630,3.2078,3089.9,3089.2,3.73253]
[1763318073822,3.2078,3089.9,3089.2,3.2078]
[1763318074829,0.76111381,3089.8,3089.2,3.2078]
[1763318075429,3.2078,3089.9,3089.2,3.2078]
[1763318076130,0.76158715,3089.8,3089.2,3.73254]
[1763318076726,0.76158715,3089.8,3089.4,0.52471]
[1763318076925,0.76158715,3089.8,3089.2,3.73253]
[1763318077120,1.2045,3089.3,3089.2,3.2078]
[1763318077427,3.2078,3089.9,3089.2,3.2078]
[1763318077816,3.2078,3089.9,3089.3,0.52473]
[1763318078225,0.76238163,3089.8,3089.4,0.52471]
[1763318078425,3.2078,3089.9,3089.4,0.52471]
[1763318079325,0.76287457,3089.8,3089.2,3.2078]
[1763318079722,0.76287457,3089.8,3089.2,3.73254]
[1763318080022,0.76287457,3089.8,3089.3,0.52472]
[1763318080723,0.76287457,3089.8,3089.2,3.2078]
[1763318081134,0.76287457,3089.8,3089.2,3.73254]
[1763318081325,0.6977,3089.4,3089.0,4.881e-05]
[1763318081526,0.86810199,3089.3,3089.0,4.881e-05]
[1763318081731,0.86810199,3089.3,3089.2,4.92904]
[1763318082027,0.86810199,3089.8,3089.2,4.92904]
[1763318082331,1.6319144,3089.8,3089.3,0.52472]
[1763318082531,0.76381241,3089.7,3089.4,0.5247]
[1763318082731,0.76381241,3089.6,3089.2,3.73253]
[1763318082925,0.6977,3090.0,3087.4,3.88439333]
[1763318082926,0.6977,3088.8,3088.6,3.2078]
[1763318083123,0.6977,3088.8,3087.8,1.68363657]
[1763318083124,0.6977,3088.2,3087.7,3.2078]
[1763318083526,0.6977,3088.2,3087.7,3.73278]
[1763318083833,3.2078,3088.7,3088.1,1.1965]
[1763318084025,0.76365465,3088.6,3088.1,1.20490245]
[1763318084325,0.76365465,3088.6,3088.5,1.1965]
[1763318084521,0.76365465,3088.6,3088.1,3.21620245]
[1763318084522,0.00867498,3088.7,3088.4,0.52488]
[1763318084718,0.00867498,3088.7,3088.5,3.73266]
[1763318084928,0.00867498,3088.7,3088.6,1.1965]
[1763318088339,0.00867498,3088.7,3088.6,3.55617085]
[1763318088532,3.2078,3089.6,3089.1,0.52475]
[1763318088727,0.76303732,3089.5,3089.2,0.52474]
[1763318088926,0.87094676,3089.8,3089.2,0.52474]
[1763318089138,0.87094676,3089.7,3089.1,3.2078]
[1763318089539,0.87957372,3089.7,3089.1,3.2078]
[1763318089832,0.87957372,3089.7,3089.1,3.73256]
[1763318090336,0.87957372,3089.7,3089.2,0.52474]
[1763318090538,0.87957372,3089.7,3089.1,3.2078]
[1763318090539,0.00862696,3089.7,3089.1,3.2078]
[1763318090737,0.00862696,3089.7,3089.5,1.1289]
[1763318091843,1.1438,3088.8,3088.7,3.2078]
[1763318092034,1.8164,3088.8,3088.7,3.2078]
[1763318093549,0.6726,3089.4,3088.7,3.2078]
[1763318093737,0.76303772,3089.3,3088.8,0.2502]
[1763318093941,3.2078,3089.6,3089.4,0.52471]
[1763318094140,0.6726,3089.4,3089.0,0.52477]
[1763318094336,0.6726,3089.4,3089.1,0.52476]
[1763318094737,0.00862696,3089.7,3089.2,3.2078]
[1763318094939,0.00862696,3089.7,3089.4,0.5247]
[1763318096246,0.00862696,3089.7,3089.3,0.52473]
[1763318096431,0.00862696,3089.7,3089.2,3.2078]
[1763318096637,0.00862696,3089.7,3089.6,1.1289]
[1763318096836,0.00862696,3089.7,3089.5,0.52468]
[1763318097845,0.00862696,3089.7,3089.6,1.65358]
[1763318099547,0.00862696,3089.7,3089.2,3.2078]
[1763318099847,0.00862696,3089.7,3089.3,0.52471]
[1763318100248,0.00862696,3089.7,3089.4,0.5247]
[1763318100546,1.1438,3089.3,3089.2,3.2078]
[1763318100748,0.6726,3089.4,3089.2,3.2078]
[1763318101248,1.1438,3089.3,3089.2,3.2078]
[1763318101447,0.87892931,3089.7,3089.2,4.3367]
[1763318101643,1.6449991,3089.7,3089.2,4.3367]
[1763318101844,1.1438,3089.3,3089.2,3.2078]
[1763318102145,1.90987279,3089.3,3089.2,3.2078]
[1763318103048,2.78017514,3089.3,3088.8,3.2078]
[1763318103246,1.1438,3088.9,3088.8,3.2078]
[1763318103547,0.6726,3088.8,3088.1,0.53333245]
[1763318103748,3.97387279,3088.7,3088.1,0.53333245]
[1763318103952,0.6726,3088.5,3088.1,0.00840245]
[1763318104151,1.1438,3088.2,3088.1,0.00840245]
[1763318105346,0.6726,3088.5,3088.1,0.00840245]
[1763318105546,0.76576461,3088.4,3088.1,0.00840245]
[1763318105748,0.76576461,3088.4,3088.3,1.6538]
[1763318105944,4.07810235,3089.1,3088.8,1.1289]
[1763318106150,0.76566514,3089.0,3088.8,1.1289]
[1763318106350,0.76566514,3089.0,3088.4,3.2078]
[1763318106351,0.76566514,3089.0,3088.5,0.52486]
[1763318106946,0.76566514,3089.0,3088.9,1.1289]
[1763318107140,0.76566514,3089.0,3088.4,3.2078]
[1763318107747,0.76566514,3089.0,3088.9,1.1289]
[1763318107949,0.76566514,3089.0,3088.9,1.6537]
[1763318108849,0.76566514,3089.0,3088.9,1.1289]
[1763318109348,0.76566514,3089.0,3088.9,1.6537]
[1763318109847,0.76566514,3089.0,3088.9,1.1289]
[1763318110355,3.2078,3089.5,3089.4,1.1289]
[1763318110653,0.76572265,3089.5,3089.4,1.1289]
[1763318110847,0.00862696,3089.7,3089.6,1.1289]
[1763318111254,0.00862696,3089.7,3089.6,1.65358]
[1763318111553,0.00862696,3089.7,3089.6,1.1289]
[1763318111748,0.00862696,3089.7,3089.4,0.5247]
[1763318111946,0.00862696,3089.7,3089.6,1.1289]
[1763318112550,0.00862696,3089.7,3089.6,1.65358]
[1763318112755,0.00862696,3089.7,3089.6,4.86138]
[1763318115453,0.76531512,3090.5,3090.2,0.52456]
[1763318115656,0.76531512,3090.5,3090.3,0.52455]
[1763318116550,0.76868146,3090.5,3090.3,0.52865084]
[1763318116861,1.0169,3090.4,3090.3,0.00410084]
[1763318117151,1.0169,3089.7,3089.6,3.2078]
[1763318117952,1.0169,3089.7,3089.6,3.21048413]
[1763318120156,1.7818758,3089.7,3089.6,3.21048413]
[1763318120759,4.9896758,3089.7,3089.6,0.00268413]
[1763318120957,5.85980108,3089.7,3089.6,0.00268413]
[1763318121459,4.9896758,3089.7,3089.6,0.00268413]
[1763318121656,0.6109,3089.5,3089.0,3.2078]
[1763318121856,0.7649758,3089.4,3089.0,3.2078]
[1763318122256,1.021,3089.1,3089.0,3.2078]
[1763318122568,0.6109,3089.5,3089.0,3.2078]
[1763318122760,0.76515401,3089.4,3089.0,3.21083348]
[1763318123958,1.021,3089.1,3089.0,3.21083348]
[1763318124157,1.021,3089.1,3089.0,0.00303348]
[1763318124158,4.2288,3089.1,3089.0,0.00303348]
[1763318124454,4.99397808,3089.1,3089.0,0.00303348]
[1763318125561,3.97291273,3089.1,3089.0,0.00303348]
[1763318126157,4.99391273,3089.1,3089.0,0.00303348]
[1763318128359,3.97291273,3089.1,3089.0,1.03543348]
[1763318128864,4.99391273,3089.1,3089.0,0.00303348]
[1763318129964,3.8187,3089.5,3089.0,1.03543348]
[1763318130165,3.8187,3089.5,3089.0,0.00303348]
[1763318130166,1.021,3089.1,3089.0,0.00303348]
[1763318130368,4.2288,3089.1,3089.0,0.00303348]
[1763318130562,4.99544313,3089.1,3089.0,0.00303348]
[1763318131567,3.97444313,3089.1,3089.0,1.03543348]
[1763318131764,0.76664313,3089.1,3089.0,1.03543348]
[1763318131962,1.48114623,3089.5,3089.0,1.03543348]
[1763318132170,0.76659307,3089.4,3089.0,1.03543348]
[1763318133174,1.021,3089.1,3089.0,0.00303348]
[1763318133469,1.021,3087.6,3087.5,3.2078]
[1763318133773,1.021,3087.6,3087.1,0.52509]
[1763318133975,3.2078,3087.5,3087.1,0.52509]
[1763318134470,3.21180997,3087.5,3087.1,0.52852524]
[1763318134676,0.00400997,3087.5,3087.4,1.0324]
[1763318137973,2.64492472,3087.9,3087.8,1.0324]
[1763318138369,3.66592472,3087.9,3087.5,1.16963]
[1763318138568,1.021,3087.6,3087.4,3.2078]
[1763318139073,1.02342923,3087.6,3087.4,3.2078]
[1763318139269,1.02342923,3087.6,3087.4,3.73285]
[1763318139465,1.021,3087.5,3087.1,0.52852524]
[1763318139674,1.021,3087.5,3087.1,0.00343524]
[1763318140069,1.021,3087.5,3087.1,0.52853524]
[1763318140381,0.00242923,3087.6,3087.2,0.52508]
[1763318140677,0.00242923,3087.6,3087.5,1.677]
[1763318141682,0.00242923,3087.6,3087.5,2.20203]
[1763318142773,1.16074036,3088.7,3087.5,2.20203]
[1763318142774,0.87067822,3089.0,3088.9,1.0324]
[1763318142977,3.2078,3089.3,3088.9,1.55719]
[1763318143172,3.2078,3089.3,3088.9,1.0324]
[1763318143377,3.2078,3089.3,3088.3,3.2078]
[1763318143378,1.6319,3089.0,3088.3,3.2078]
[1763318143572,3.2078,3088.7,3088.3,3.2078]
[1763318143775,3.21058351,3088.7,3088.4,0.52488]
[1763318144077,3.21058351,3088.7,3088.3,3.2078]
[1763318144580,3.21058351,3088.7,3088.4,0.52488]
[1763318145568,3.21058351,3088.7,3088.3,3.2078]
[1763318146782,3.21058351,3088.7,3088.4,0.52488]
[1763318146979,3.21058351,3088.7,3088.3,3.2078]
[1763318147181,1.021,3088.4,3088.3,3.2078]
[1763318149886,1.0012,3088.3,3088.2,0.00485602]
[1763318150377,0.6352,3088.5,3088.2,0.00485602]
[1763318150584,1.0012,3088.3,3088.2,0.00485602]
[1763318151990,0.6352,3088.5,3088.2,1.00075602]
[1763318152288,3.21058351,3088.7,3088.2,1.00075602]
[1763318152489,0.76065238,3088.6,3088.5,0.9959]
[1763318153603,1.76185238,3088.6,3088.2,0.00485602]
[1763318153900,1.0012,3088.6,3088.2,0.52976602]
[1763318155499,0.76086264,3088.5,3088.2,0.52976602]
[1763318155700,1.0012,3088.3,3088.2,0.00485602]
[1763318156898,0.6352,3088.5,3088.2,1.00075602]
[1763318157201,3.21058351,3088.7,3088.2,1.00075602]
[1763318157405,0.76091791,3088.6,3088.2,1.00075602]
[1763318159701,4.209,3088.3,3088.2,0.00485602]
[1763318160498,1.0012,3088.3,3088.2,0.00485602]
[1763318160701,0.6352,3088.5,3088.2,1.00075602]
[1763318160896,3.21058351,3088.7,3088.4,0.52488]
[1763318161102,0.75917377,3088.6,3088.5,0.9959]
[1763318162207,3.21058351,3088.7,3088.6,0.9959]
[1763318162407,3.96989525,3088.7,3088.6,1.52075]
[1763318162607,1.74111054,3089.4,3088.6,1.52075]
[1763318162608,4.07847822,3089.7,3089.3,0.9959]
[1763318162813,0.87067822,3089.7,3089.6,0.9959]
[1763318163004,0.87067822,3089.9,3089.7,0.9959]
[1763318163312,1.0012,3089.8,3089.1,0.52475]
[1763318163509,1.00366671,3089.8,3089.2,0.52474]
[1763318163707,1.00366671,3089.8,3089.3,0.52472]
[1763318163912,1.00366671,3089.8,3089.1,0.00276549]
[1763318164612,1.00366671,3089.8,3089.3,0.52471]
[1763318164813,1.00366671,3089.8,3089.1,0.52751549]
[1763318165711,1.00366671,3089.8,3089.3,0.52472]
[1763318166009,1.00366671,3089.8,3089.5,3.2078]
[1763318166409,0.00246671,3089.8,3089.7,0.9959]
[1763318166608,1.00366671,3089.8,3089.5,3.2078]
[1763318166807,1.0012,3089.6,3089.5,3.2078]
[1763318167005,1.0012,3089.6,3089.1,0.00276549]
[1763318167006,1.0012,3089.6,3089.1,3.21056549]
[1763318167314,0.6352,3089.5,3089.1,3.21056549]
[1763318167513,1.0012,3089.2,3089.1,3.21056549]
[1763318168009,7.0012,3089.2,3089.1,0.00276549]
[1763318168204,1.0012,3088.8,3088.7,3.2078]
[1763318168406,1.0012,3088.8,3088.2,0.00485602]
[1763318168407,1.0012,3088.3,3088.2,3.21265602]
[1763318168713,1.0012,3088.3,3088.2,0.00485602]
[1763318169113,1.0012,3088.3,3088.2,0.00733384]
[1763318169307,4.209,3088.3,3088.2,0.00733384]
[1763318169818,1.0012,3088.3,3088.2,0.00733384]
[1763318171512,0.87024134,3088.8,3088.7,0.9959]
[1763318171707,1.0012,3088.8,3088.2,3.21513384]
[1763318171907,1.0012,3088.8,3088.2,3.74004384]
[1763318172409,1.0012,3088.8,3088.4,0.52488]
[1763318172615,3.2078,3089.1,3089.0,0.9959]
[1763318173113,0.6352,3089.0,3088.2,3.21513384]
[1763318173502,1.0012,3088.3,3088.2,3.21513384]
[1763318173708,1.0012,3088.3,3088.2,0.00733384]
[1763318174516,1.76024061,3088.3,3088.2,0.00733384]
[1763318174715,1.76024061,3088.3,3087.0,0.6355]
[1763318174716,1.0012,3087.1,3087.0,3.2078]
[1763318175008,0.6352,3087.5,3086.5,0.6355]
[1763318175009,0.6352,3087.0,3086.6,3.2078]
[1763318175209,1.0012,3086.7,3086.6,3.2078]
[1763318175610,1.00457892,3086.7,3086.6,3.21117228]
[1763318176606,1.00457892,3086.7,3086.6,0.00337228]
[1763318181124,0.00337892,3086.7,3086.6,4.17977228]
[1763318182517,0.00337892,3086.7,3086.6,3.21117228]
[1763318182911,0.89727892,3086.7,3086.6,3.21117228]
[1763318184319,0.89727892,3086.7,3086.6,0.00337228]
[1763318185409,0.00337892,3086.7,3086.6,0.00337228]
[1763318185623,0.00337892,3086.7,3086.6,4.17977228]
[1763318185825,0.00485602,3087.0,3086.9,1.49374]
[1763318186025,0.00485602,3087.0,3086.9,0.52514]
[1763318186520,0.00485602,3087.0,3086.9,1.49374]
[1763318186823,0.0087421,3087.0,3086.9,1.49374]
[1763318187321,0.0087421,3087.0,3086.9,0.9686]
[1763318190626,0.0087421,3087.0,3086.9,1.49374]
[1763318192025,0.9026421,3087.0,3086.7,0.52516]
[1763318192217,1.4580421,3087.0,3086.6,3.21117228]
[1763318192414,0.0087421,3087.0,3086.9,0.9686]
[1763318192620,0.0087421,3087.0,3086.9,1.49374]
[1763318192829,0.0087421,3087.0,3086.9,0.9686]
[1763318193930,0.9026421,3087.0,3086.6,3.21117228]
[1763318194124,0.9026421,3087.0,3086.7,0.52516]
[1763318194325,0.0087421,3087.0,3086.9,1.49374]
[1763318195322,0.0087421,3087.0,3086.9,0.9686]
[1763318196032,0.0087421,3087.0,3086.9,1.49374]
[1763318197634,0.0087421,3087.0,3086.8,0.52515]
[1763318197839,0.0087421,3087.0,3086.9,0.9686]
[1763318198635,0.0087421,3087.0,3086.9,1.49374]
[1763318199838,0.0087421,3087.0,3086.9,0.9686]
[1763318200429,0.0087421,3087.0,3086.9,1.49374]
[1763318203632,0.9026421,3087.0,3086.9,0.9686]
[1763318204437,0.8939,3086.7,3086.6,4.17977228]
[1763318204639,1.32560082,3087.0,3086.6,4.17977228]
[1763318204640,0.0087421,3087.0,3086.9,0.9686]
[1763318205643,0.9026421,3087.0,3086.9,0.9686]
[1763318206035,1.66413413,3087.0,3086.9,0.9686]
[1763318207039,0.0087421,3087.0,3086.9,1.49374]
[1763318207238,0.0087421,3087.0,3086.9,0.9686]
[1763318207444,0.0087421,3087.0,3086.9,1.49374]
[1763318208334,0.76149498,3087.4,3087.3,1.34467]
[1763318208530,0.87298168,3087.6,3087.5,0.8196]
[1763318208739,1.70738168,3087.6,3087.3,3.73287]
[1763318209043,0.76150521,3087.5,3087.3,3.2078]
[1763318209244,0.76150521,3087.4,3087.3,4.0274]
[1763318209445,0.76569304,3087.4,3087.3,4.0274]
[1763318209644,0.83858783,3087.4,3087.3,3.2078]
[1763318210139,1.60009304,3087.4,3087.3,3.2078]
[1763318210339,2.47307472,3087.4,3087.3,3.2078]
[1763318210649,1.3319,3087.0,3086.9,3.2078]
[1763318210834,2.09376685,3087.0,3086.9,3.2078]
[1763318215043,0.8344,3086.7,3086.6,0.00337228]
[1763318215247,1.59626685,3086.7,3086.6,0.00337228]
[1763318216745,1.59626685,3086.7,3086.6,0.82297228]
[1763318216941,1.59626685,3086.7,3085.6,4.89143657]
[1763318216942,0.8344,3085.7,3085.6,4.89143657]
[1763318217245,1.70698456,3085.7,3085.2,3.2078]
[1763318217440,0.87258456,3085.8,3085.6,4.0274]
[1763318217648,0.4975,3086.0,3085.7,0.8196]
[1763318217845,0.8344,3085.7,3085.6,3.2078]
[1763318218148,0.50235602,3086.0,3085.6,4.03056573]
[1763318218454,0.76103643,3085.9,3085.6,4.03056573]
[1763318218948,0.8344,3085.7,3085.6,3.21096573]
[1763318219443,0.8344,3085.7,3085.6,4.03056573]
[1763318219641,0.00485602,3086.0,3085.9,0.8196]
[1763318220338,0.8344,3085.7,3085.6,3.21096573]
[1763318221244,0.50235602,3086.0,3085.6,0.82276573]
[1763318221444,0.50235602,3086.0,3085.6,4.03056573]
[1763318221641,0.00485602,3086.0,3085.9,0.8196]
[1763318222047,4.08038456,3086.9,3086.0,0.1974]
[1763318222246,0.75606939,3086.8,3086.3,3.2078]
[1763318222440,1.59046939,3086.8,3086.3,3.2078]
[1763318222644,0.8344,3086.4,3086.3,3.2078]
[1763318224150,1.59040236,3086.4,3086.3,3.2078]
[1763318225151,1.59034812,3086.4,3086.3,3.2078]
[1763318226660,0.1736,3085.7,3085.6,0.00316573]
[1763318226844,0.87090836,3086.1,3085.6,0.00316573]
[1763318227050,1.62685648,3086.1,3085.6,0.00316573]
[1763318227245,0.75594812,3086.1,3085.6,0.00316573]
[1763318227555,0.1736,3085.7,3085.6,0.00316573]
[1763318228254,3.3814,3085.7,3085.6,0.00316573]
[1763318228752,4.07870836,3086.1,3085.6,0.00316573]
[1763318228948,0.7554988,3086.0,3085.6,0.00316573]
[1763318229558,3.2078,3085.7,3085.6,0.00316573]
[1763318230454,3.3814,3085.7,3085.6,0.00316573]
[1763318230658,4.13659423,3085.7,3085.6,0.00316573]
[1763318231144,3.96299423,3085.7,3085.6,0.82276573]
[1763318231343,3.2078,3085.7,3085.6,0.82276573]
[1763318232358,3.2078,3085.7,3085.6,1.34812573]
[1763318232554,3.3814,3086.1,3085.6,0.00316573]
[1763318234361,0.1736,3085.7,3085.6,0.00316573]
[1763318234555,3.3814,3085.7,3085.6,0.00316573]
[1763318234856,4.13647422,3085.7,3085.6,0.00316573]
[1763318236261,4.13647422,3085.7,3084.5,0.4887]
[1763318236262,0.0903,3085.4,3084.5,0.4887]
[1763318236454,0.0903,3084.1,3083.9,3.2078]
[1763318236657,0.0903,3083.8,3083.7,0.0324291]
[1763318236865,3.2078,3084.1,3083.7,0.0324291]
[1763318237250,3.21174425,3084.1,3083.7,0.03572389]
[1763318237761,0.00394425,3084.1,3084.0,1.3008]
[1763318238261,0.00394425,3084.1,3083.7,0.03572389]
[1763318238262,0.00394425,3084.1,3083.8,3.2078]
[1763318238456,0.0721,3083.8,3083.7,0.03572389]
[1763318239655,3.21174425,3084.1,3083.7,0.03572389]
[1763318239965,3.21174425,3084.1,3084.0,1.3322]
[1763318241365,3.21174425,3084.1,3084.0,0.4796]
[1763318241872,3.21174425,3084.1,3084.0,1.3322]
[1763318242251,0.0721,3083.8,3083.7,0.03572389]
[1763318243165,3.21174425,3084.1,3083.7,0.03572389]
[1763318243768,0.0721,3083.8,3083.7,0.03572389]
[1763318244458,6.0721,3083.8,3083.0,0.4996]
[1763318244661,3.2442,3083.1,3082.4,3.2078]
[1763318245062,3.2442,3082.6,3081.9,3.2078]
[1763318245569,6.4528,3081.8,3080.0,0.9796]
[1763318245765,3.2078,3080.1,3080.0,0.98345829]
[1763318246266,9.2078,3080.1,3080.0,0.00385829]
[1763318246468,6.0,3080.0,3078.6,0.4796]
[1763318246664,3.2078,3078.8,3078.7,0.02048177]
[1763318246860,3.2078,3079.6,3079.3,0.4796]
[1763318247061,3.2078,3079.6,3079.3,0.4676]
[1763318247371,3.21170009,3079.6,3079.3,0.00238063]
[1763318247561,3.21170009,3079.6,3079.1,0.0048721]
[1763318247756,3.2078,3079.2,3078.8,0.26812461]
[1763318248062,3.2078,3079.2,3078.8,0.78263461]
[1763318248263,3.21170009,3079.6,3079.3,0.4796]
[1763318248466,3.2078,3081.8,3080.7,0.4796]
[1763318248765,3.2078,3081.4,3080.7,0.4796]
[1763318248962,3.2078,3081.0,3080.7,0.4796]
[1763318249163,3.2078,3081.4,3080.7,0.4796]
[1763318249462,3.21553343,3081.4,3080.9,3.2078]
[1763318249861,3.21553343,3081.4,3081.0,0.25612461]
[1763318250064,0.00773343,3081.4,3081.3,3.2078]
[1763318250264,0.00773343,3081.4,3081.3,3.46392461]
[1763318251470,0.0048721,3081.4,3081.3,9.46392461]
[1763318251770,3.2078,3082.3,3082.1,0.4796]
[1763318251970,3.2078,3082.7,3082.1,0.4796]
[1763318252265,3.2078,3082.7,3082.2,0.25612461]
[1763318252767,3.2078,3082.7,3082.1,0.4796]
[1763318252768,3.21105042,3082.7,3082.3,0.25612461]
[1763318252969,3.21105042,3082.7,3082.2,0.25612461]
[1763318253469,3.21105042,3082.7,3082.1,0.4796]
[1763318253670,3.21105042,3082.7,3082.1,0.73572461]
[1763318254457,0.52593,3082.3,3082.1,0.4796]
[1763318254664,3.2078,3082.3,3082.1,0.4796]
[1763318255064,3.21105042,3082.7,3082.2,0.78205461]
[1763318255265,3.73691042,3082.7,3082.1,1.00555]
[1763318255576,3.21105042,3082.7,3082.5,0.52587]